[Event "Blixt-SM 2021"]
[Site "Elite Hotel Marina Plaza, Kungstorget 6, Helsingborg, Sweden"]
[Date "2021.11.14"]
[Round "13.4"]
[White "Jepson, Christian"]
[Black "Terochin, Piotr"]
[Result "1-0"]
[TimeControl "3 minutes + 2 seconds per move."]
[WhiteTitle "IM"]
[WhiteFideId "1701185"]
[BlackFideId "1113682"]
[WhiteElo "2412"]
[BlackElo "1779"]

1. Nf3 {[%clk 00:03:03]} c5 {[%clk 00:02:58]} {[%emt 00:00:07]} 2. c4 {[%clk
00:03:03]} {[%emt 00:00:01]} Nf6 {[%clk 00:02:56]} {[%emt 00:00:04]} 3. Nc3
{[%clk 00:03:02]} {[%emt 00:00:04]} g6 {[%clk 00:02:57]} 4. d4 {[%clk
00:03:00]} {[%emt 00:00:04]} cxd4 {[%clk 00:02:58]} {[%emt 00:00:02]} 5. Nxd4
{[%clk 00:03:01]} {[%emt 00:00:01]} Nc6 {[%clk 00:02:58]} {[%emt 00:00:02]} 6.
e4 {[%clk 00:03:01]} {[%emt 00:00:01]} Bg7 {[%clk 00:02:56]} {[%emt 00:00:05]}
7. Be3 {[%clk 00:03:01]} {[%emt 00:00:01]} d6 {[%clk 00:02:55]} {[%emt
00:00:03]} 8. Be2 {[%clk 00:03:02]} O-O {[%clk 00:02:55]} {[%emt 00:00:02]} 9.
O-O {[%clk 00:03:02]} {[%emt 00:00:01]} a6 {[%clk 00:02:52]} {[%emt 00:00:06]}
10. Qd2 {[%clk 00:02:44]} {[%emt 00:00:20]} Qc7 {[%clk 00:02:20]} {[%emt
00:00:34]} 11. Rac1 {[%clk 00:02:41]} {[%emt 00:00:04]} Nxd4 {[%clk 00:02:17]}
{[%emt 00:00:05]} 12. Bxd4 {[%clk 00:02:41]} {[%emt 00:00:01]} e5 {[%clk
00:02:19]} 13. Be3 {[%clk 00:02:41]} {[%emt 00:00:04]} Be6 {[%clk 00:02:18]}
{[%emt 00:00:03]} 14. b3 {[%clk 00:02:18]} {[%emt 00:00:25]} Qa5 {[%clk
00:01:15]} {[%emt 00:01:05]} 15. Qxd6 {[%clk 00:02:07]} {[%emt 00:00:13]} Rac8
{[%clk 00:01:04]} {[%emt 00:00:13]} 16. Bb6 {[%clk 00:01:49]} {[%emt 00:00:19]}
Ne8 {[%clk 00:00:49]} {[%emt 00:00:16]} 17. Qxf8+ {[%clk 00:01:48]} {[%emt
00:00:03]} Bxf8 {[%clk 00:00:50]} {[%emt 00:00:02]} 18. Bxa5 {[%clk 00:01:48]}
{[%emt 00:00:02]} Rc6 {[%clk 00:00:46]} {[%emt 00:00:06]} 19. Nd5 {[%clk
00:01:46]} {[%emt 00:00:04]} Nd6 {[%clk 00:00:40]} {[%emt 00:00:07]} 20. Rcd1
{[%clk 00:01:31]} {[%emt 00:00:17]} Nxe4 {[%clk 00:00:34]} {[%emt 00:00:08]} 21.
Bf3 {[%clk 00:01:29]} {[%emt 00:00:04]} Ng5 {[%clk 00:00:35]} {[%emt 00:00:02]}
22. Nf6+ {[%clk 00:01:28]} {[%emt 00:00:02]} Kg7 {[%clk 00:00:35]} {[%emt
00:00:02]} 23. Ne8+ {[%clk 00:01:28]} {[%emt 00:00:02]} Kg8 {[%clk 00:00:34]}
{[%emt 00:00:03]} 24. Bxc6 {[%clk 00:01:29]} {[%emt 00:00:02]} bxc6 {[%clk
00:00:35]} 25. Bc3 {[%clk 00:01:19]} {[%emt 00:00:12]} Bc5 {[%clk 00:00:28]}
{[%emt 00:00:10]} 26. Bxe5 {[%clk 00:00:56]} {[%emt 00:00:24]} Kf8 {[%clk
00:00:29]} 27. Bd6+ {[%clk 00:00:54]} {[%emt 00:00:04]} Bxd6 {[%clk 00:00:30]}
{[%emt 00:00:01]} 28. Nxd6 {[%clk 00:00:55]} {[%emt 00:00:02]} Ke7 {[%clk
00:00:31]} 29. Rfe1 {[%clk 00:00:53]} {[%emt 00:00:04]} h5 {[%clk 00:00:29]}
{[%emt 00:00:04]} 30. Ne4 {[%clk 00:00:49]} {[%emt 00:00:06]} Nh7 {[%clk
00:00:28]} {[%emt 00:00:03]} 31. Nc5 {[%clk 00:00:50]} {[%emt 00:00:01]} Nf6
{[%clk 00:00:28]} {[%emt 00:00:02]} 32. f3 {[%clk 00:00:47]} {[%emt 00:00:05]}
h4 {[%clk 00:00:27]} {[%emt 00:00:04]} 33. Kf2 {[%clk 00:00:47]} {[%emt
00:00:02]} h3 {[%clk 00:00:26]} {[%emt 00:00:02]} 34. g4 {[%clk 00:00:45]}
{[%emt 00:00:04]} g5 {[%clk 00:00:26]} {[%emt 00:00:02]} 35. b4 {[%clk
00:00:43]} {[%emt 00:00:04]} 1-0

[Event "Blixt-SM 2021"]
[Site "Elite Hotel Marina Plaza, Kungstorget 6, Helsingborg, Sweden"]
[Date "2021.11.14"]
[Round "2.7"]
[White "Frisk, Ellinor"]
[Black "Agovic, Seifo"]
[Result "1-0"]
[TimeControl "3 minutes + 2 seconds per move."]
[WhiteTitle "WIM"]
[WhiteFideId "1708481"]
[BlackFideId "1702360"]
[WhiteElo "2142"]
[BlackElo "1910"]

1. Nf3 {[%clk 00:03:02]} {[%emt 00:00:02]} Nf6 {[%clk 00:03:03]} 2. c4 {[%clk
00:03:03]} e6 {[%clk 00:03:04]} {[%emt 00:00:01]} 3. g3 {[%clk 00:03:03]}
{[%emt 00:00:02]} b6 {[%clk 00:03:05]} {[%emt 00:00:02]} 4. Bg2 {[%clk
00:03:03]} {[%emt 00:00:01]} Bb7 {[%clk 00:03:06]} 5. O-O {[%clk 00:03:04]}
{[%emt 00:00:01]} d5 {[%clk 00:03:07]} 6. cxd5 {[%clk 00:03:00]} {[%emt
00:00:06]} exd5 {[%clk 00:03:07]} {[%emt 00:00:02]} 7. d4 {[%clk 00:02:54]}
{[%emt 00:00:07]} Nbd7 {[%clk 00:03:08]} {[%emt 00:00:02]} 8. Nc3 {[%clk
00:02:54]} {[%emt 00:00:02]} Be7 {[%clk 00:03:07]} {[%emt 00:00:02]} 9. Ne5
{[%clk 00:02:40]} {[%emt 00:00:16]} a6 {[%clk 00:02:56]} {[%emt 00:00:13]} 10.
Qb3 {[%clk 00:02:18]} {[%emt 00:00:24]} c6 {[%clk 00:02:25]} {[%emt 00:00:33]}
11. Bf4 {[%clk 00:02:13]} {[%emt 00:00:07]} O-O {[%clk 00:02:24]} {[%emt
00:00:03]} 12. Rac1 {[%clk 00:02:11]} {[%emt 00:00:04]} Rc8 {[%clk 00:02:24]}
{[%emt 00:00:02]} 13. Rfd1 {[%clk 00:02:07]} {[%emt 00:00:07]} Nh5 {[%clk
00:02:24]} 14. Nxd7 {[%clk 00:01:53]} {[%emt 00:00:16]} Qxd7 {[%clk 00:02:18]}
{[%emt 00:00:09]} 15. Qxb6 {[%clk 00:01:42]} {[%emt 00:00:13]} Nxf4 {[%clk
00:02:18]} {[%emt 00:00:01]} 16. gxf4 {[%clk 00:01:43]} Rb8 {[%clk 00:02:10]}
{[%emt 00:00:10]} 17. Na4 {[%clk 00:01:40]} {[%emt 00:00:05]} Bd8 {[%clk
00:01:57]} {[%emt 00:00:15]} 18. Qb3 {[%clk 00:01:33]} {[%emt 00:00:09]} Bc7
{[%clk 00:01:58]} {[%emt 00:00:01]} 19. Nc5 {[%clk 00:01:29]} {[%emt 00:00:06]}
Qc8 {[%clk 00:01:50]} {[%emt 00:00:10]} 20. e3 {[%clk 00:01:27]} {[%emt
00:00:04]} Ba8 {[%clk 00:01:47]} {[%emt 00:00:05]} 21. Qa3 {[%clk 00:01:22]}
{[%emt 00:00:07]} Bd6 {[%clk 00:01:46]} {[%emt 00:00:02]} 22. Qxa6 {[%clk
00:01:14]} {[%emt 00:00:11]} Qxa6 {[%clk 00:01:45]} {[%emt 00:00:03]} 23. Nxa6
{[%clk 00:01:15]} {[%emt 00:00:02]} Rxb2 {[%clk 00:01:46]} 24. a4 {[%clk
00:01:06]} {[%emt 00:00:11]} Bb7 {[%clk 00:01:45]} {[%emt 00:00:03]} 25. Nc5
{[%clk 00:01:06]} {[%emt 00:00:02]} Bxc5 {[%clk 00:01:44]} {[%emt 00:00:03]} 26.
Rxc5 {[%clk 00:01:07]} {[%emt 00:00:01]} Ra8 {[%clk 00:01:45]} 27. Ra1 {[%clk
00:01:01]} {[%emt 00:00:08]} f5 {[%clk 00:01:37]} {[%emt 00:00:11]} 28. a5
{[%clk 00:00:58]} {[%emt 00:00:05]} Ra6 {[%clk 00:01:37]} {[%emt 00:00:02]} 29.
Bf1 {[%clk 00:00:55]} {[%emt 00:00:04]} Ra7 {[%clk 00:01:36]} {[%emt 00:00:03]}
30. a6 {[%clk 00:00:47]} {[%emt 00:00:10]} Ba8 {[%clk 00:01:37]} {[%emt
00:00:01]} 31. Bd3 {[%clk 00:00:41]} {[%emt 00:00:08]} g6 {[%clk 00:01:38]}
{[%emt 00:00:01]} 32. Kg2 {[%clk 00:00:41]} {[%emt 00:00:01]} Kf7 {[%clk
00:01:39]} 33. Kf3 {[%clk 00:00:43]} {[%emt 00:00:01]} Ke6 {[%clk 00:01:41]} 34.
Rca5 {[%clk 00:00:40]} {[%emt 00:00:04]} Rb6 {[%clk 00:01:39]} {[%emt
00:00:04]} 35. h4 {[%emt 00:00:06]} Rb3 {[%clk 00:01:37]} {[%emt 00:00:03]} 36.
Be2 {[%clk 00:00:38]} {[%emt 00:00:02]} Rb2 {[%clk 00:01:32]} {[%emt 00:00:07]}
37. R5a2 {[%clk 00:00:34]} {[%emt 00:00:05]} Rxa2 {[%emt 00:00:03]} 38. Rxa2
Kd6 {[%clk 00:01:32]} {[%emt 00:00:01]} 39. Ra1 {[%clk 00:00:35]} {[%emt
00:00:02]} Rc7 {[%clk 00:01:31]} {[%emt 00:00:03]} 40. Rh1 {[%clk 00:00:33]}
{[%emt 00:00:03]} c5 {[%clk 00:01:28]} {[%emt 00:00:06]} 41. dxc5+ {[%clk
00:00:33]} {[%emt 00:00:02]} Rxc5 {[%clk 00:01:30]} 42. Kg3 {[%clk 00:00:27]}
{[%emt 00:00:08]} d4 {[%clk 00:01:28]} {[%emt 00:00:04]} 43. Rd1 {[%clk
00:00:28]} Ra5 {[%clk 00:01:09]} {[%emt 00:00:21]} 44. Rxd4+ {[%clk 00:00:29]}
{[%emt 00:00:01]} Ke7 {[%clk 00:01:11]} 45. Rb4 {[%clk 00:00:26]} {[%emt
00:00:05]} Ra2 {[%clk 00:01:09]} {[%emt 00:00:02]} 46. Bc4 {[%clk 00:00:25]}
{[%emt 00:00:03]} Ra1 {[%clk 00:01:03]} {[%emt 00:00:09]} 47. f3 {[%clk
00:00:23]} {[%emt 00:00:04]} Rg1+ {[%clk 00:01:04]} 48. Kf2 {[%clk 00:00:24]}
Rc1 {[%clk 00:01:00]} {[%emt 00:00:06]} 49. Be2 {[%clk 00:00:22]} {[%emt
00:00:04]} Ra1 {[%clk 00:00:51]} {[%emt 00:00:11]} 50. Rb6 {[%clk 00:00:20]}
{[%emt 00:00:03]} Bd5 {[%clk 00:00:47]} {[%emt 00:00:07]} 51. Bb5 {[%clk
00:00:20]} {[%emt 00:00:02]} Ra2+ {[%clk 00:00:47]} {[%emt 00:00:02]} 52. Kg3
{[%clk 00:00:19]} {[%emt 00:00:03]} Ra1 {[%clk 00:00:48]} 53. Bc6 {[%clk
00:00:17]} {[%emt 00:00:04]} Bxc6 {[%clk 00:00:44]} {[%emt 00:00:06]} 54. Rxc6
{[%clk 00:00:18]} Kd7 {[%clk 00:00:46]} 55. Rb6 {[%clk 00:00:19]} Ke7 {[%clk
00:00:42]} {[%emt 00:00:05]} 56. Rb7+ {[%clk 00:00:21]} Kf6 {[%clk 00:00:44]}
57. a7 {[%clk 00:00:22]} {[%emt 00:00:01]} Ra6 {[%clk 00:00:44]} 58. Rxh7
{[%clk 00:00:22]} {[%emt 00:00:02]} Ra5 {[%clk 00:00:44]} {[%emt 00:00:03]} 59.
h5 {[%clk 00:00:19]} {[%emt 00:00:04]} gxh5 {[%clk 00:00:44]} {[%emt 00:00:02]}
60. Kh4 {[%clk 00:00:21]} Ra1 {[%clk 00:00:45]} {[%emt 00:00:01]} 61. Kg3
{[%clk 00:00:16]} {[%emt 00:00:06]} Rg1+ {[%clk 00:00:46]} 62. Kf2 {[%clk
00:00:18]} {[%emt 00:00:01]} Ra1 {[%clk 00:00:47]} 63. e4 {[%clk 00:00:15]}
{[%emt 00:00:05]} Ra2+ {[%clk 00:00:49]} 64. Ke3 {[%clk 00:00:16]} Ra3+ {[%clk
00:00:50]} 65. Kd4 {[%clk 00:00:17]} Ra4+ {[%clk 00:00:51]} 66. Kc5 {[%clk
00:00:17]} {[%emt 00:00:02]} fxe4 {[%clk 00:00:52]} 67. fxe4 {[%clk 00:00:19]}
h4 {[%clk 00:00:52]} {[%emt 00:00:02]} 68. Kd5 {[%clk 00:00:13]} {[%emt
00:00:08]} Ra5+ {[%clk 00:00:50]} {[%emt 00:00:04]} 69. Kc6 {[%clk 00:00:14]}
h3 {[%clk 00:00:51]} {[%emt 00:00:01]} 70. Kb7 {[%clk 00:00:15]} {[%emt
00:00:01]} Rb5+ {[%clk 00:00:52]} 71. Ka6 {[%clk 00:00:15]} {[%emt 00:00:03]}
Rb1 {[%clk 00:00:53]} 72. a8=Q {[%clk 00:00:14]} {[%emt 00:00:02]} Ra1+ {[%clk
00:00:55]} 73. Kb7 {[%clk 00:00:15]} {[%emt 00:00:02]} Rxa8 {[%clk 00:00:56]}
{[%emt 00:00:01]} 74. Kxa8 {[%clk 00:00:17]} Ke6 {[%clk 00:00:57]} 1-0

[Event "Blixt-SM 2021"]
[Site "Elite Hotel Marina Plaza, Kungstorget 6, Helsingborg, Sweden"]
[Date "2021.11.14"]
[Round "4.5"]
[White "Makinen, Janne"]
[Black "Abedinov, Adnan"]
[Result "0-1"]
[TimeControl "3 minutes + 2 seconds per move."]
[WhiteFideId "1704036"]
[BlackFideId "1703544"]
[WhiteElo "2004"]
[BlackElo "2170"]

1. d4 {[%emt 00:00:01]} g6 {[%clk 00:03:00]} {[%emt 00:00:03]} 2. c4 {[%clk
00:03:03]} Bg7 {[%clk 00:03:00]} {[%emt 00:00:02]} 3. e4 {[%clk 00:03:04]}
{[%emt 00:00:02]} c5 {[%clk 00:03:00]} {[%emt 00:00:02]} 4. d5 {[%clk
00:03:04]} {[%emt 00:00:01]} d6 {[%clk 00:03:01]} 5. Nf3 {[%clk 00:03:03]}
{[%emt 00:00:03]} Nf6 {[%clk 00:03:02]} {[%emt 00:00:02]} 6. Nc3 {[%clk
00:03:04]} {[%emt 00:00:02]} O-O {[%clk 00:03:03]} 7. Be2 e6 8. O-O {[%clk
00:03:05]} {[%emt 00:00:01]} exd5 {[%clk 00:03:06]} 9. exd5 {[%clk 00:03:06]}
{[%emt 00:00:02]} Na6 {[%clk 00:03:05]} {[%emt 00:00:04]} 10. Bf4 {[%clk
00:03:03]} {[%emt 00:00:04]} Nh5 {[%clk 00:03:04]} {[%emt 00:00:03]} 11. Be3
{[%clk 00:03:02]} {[%emt 00:00:03]} h6 {[%clk 00:02:45]} {[%emt 00:00:21]} 12.
Qd2 {[%clk 00:03:03]} {[%emt 00:00:01]} Kh7 {[%clk 00:02:44]} {[%emt 00:00:03]}
13. h3 {[%clk 00:02:50]} {[%emt 00:00:14]} f5 {[%clk 00:02:44]} {[%emt
00:00:03]} 14. Qc2 {[%clk 00:02:22]} {[%emt 00:00:30]} f4 {[%clk 00:02:32]}
{[%emt 00:00:14]} 15. Bd2 {[%clk 00:02:23]} {[%emt 00:00:01]} Bf5 {[%clk
00:02:32]} 16. Qc1 {[%clk 00:02:11]} {[%emt 00:00:13]} g5 {[%clk 00:02:25]}
{[%emt 00:00:09]} 17. Nh2 {[%clk 00:02:00]} {[%emt 00:00:13]} Nf6 {[%clk
00:02:18]} {[%emt 00:00:09]} 18. Ng4 {[%clk 00:01:48]} {[%emt 00:00:14]} Nb4
{[%clk 00:02:12]} {[%emt 00:00:08]} 19. a3 {[%clk 00:01:44]} {[%emt 00:00:06]}
Nd3 {[%clk 00:02:05]} {[%emt 00:00:09]} 20. Nxf6+ {[%clk 00:01:34]} {[%emt
00:00:13]} Qxf6 {[%clk 00:02:02]} {[%emt 00:00:04]} 21. Bxd3 {[%clk 00:01:33]}
{[%emt 00:00:03]} Bxd3 {[%clk 00:02:03]} {[%emt 00:00:01]} 22. Re1 {[%clk
00:01:32]} {[%emt 00:00:03]} Rae8 {[%clk 00:01:59]} {[%emt 00:00:06]} 23. Nb5
{[%clk 00:01:16]} {[%emt 00:00:18]} Qxb2 {[%clk 00:01:29]} {[%emt 00:00:33]} 24.
Qxb2 {[%clk 00:01:13]} {[%emt 00:00:05]} Bxb2 {[%clk 00:01:30]} 25. Rxe8 {[%clk
00:01:04]} {[%emt 00:00:11]} Rxe8 {[%clk 00:01:32]} 26. Re1 {[%clk 00:01:05]}
Rxe1+ {[%clk 00:01:20]} {[%emt 00:00:13]} 27. Bxe1 {[%clk 00:01:06]} Be5 {[%clk
00:01:18]} {[%emt 00:00:04]} 28. Nxa7 {[%clk 00:00:51]} {[%emt 00:00:17]} Bxc4
{[%clk 00:01:19]} {[%emt 00:00:02]} 29. Nc8 {[%clk 00:00:48]} {[%emt 00:00:05]}
Bxd5 {[%clk 00:01:12]} {[%emt 00:00:09]} 30. Nb6 {[%clk 00:00:46]} {[%emt
00:00:04]} Be6 {[%clk 00:01:08]} {[%emt 00:00:06]} 31. Kf1 {[%clk 00:00:42]}
{[%emt 00:00:06]} Kg6 {[%clk 00:01:09]} {[%emt 00:00:02]} 32. Ke2 {[%clk
00:00:43]} Kf7 {[%clk 00:00:55]} {[%emt 00:00:15]} 33. Kd3 {[%clk 00:00:44]}
Ke7 {[%clk 00:00:51]} {[%emt 00:00:06]} 34. Ke4 {[%clk 00:00:36]} {[%emt
00:00:10]} Bd4 {[%clk 00:00:42]} {[%emt 00:00:11]} 35. h4 {[%clk 00:00:31]}
{[%emt 00:00:07]} Bb2 {[%clk 00:00:31]} {[%emt 00:00:12]} 36. a4 {[%clk
00:00:31]} {[%emt 00:00:03]} Kf6 {[%clk 00:00:29]} {[%emt 00:00:04]} 37. hxg5+
{[%clk 00:00:30]} {[%emt 00:00:02]} hxg5 {[%clk 00:00:30]} 38. g3 {[%clk
00:00:27]} {[%emt 00:00:05]} Be5 {[%clk 00:00:28]} {[%emt 00:00:04]} 39. gxf4
{[%clk 00:00:28]} {[%emt 00:00:01]} Bxf4 {[%clk 00:00:21]} {[%emt 00:00:09]} 40.
a5 {[%clk 00:00:24]} {[%emt 00:00:06]} Ke7 {[%clk 00:00:21]} {[%emt 00:00:02]}
41. Nd5+ {[%clk 00:00:21]} {[%emt 00:00:05]} Bxd5+ {[%clk 00:00:18]} {[%emt
00:00:05]} 42. Kxd5 {[%emt 00:00:01]} Kd7 43. Bc3 {[%clk 00:00:20]} {[%emt
00:00:04]} Kc7 {[%clk 00:00:17]} {[%emt 00:00:05]} 44. Bf6 {[%clk 00:00:20]}
{[%emt 00:00:01]} Kd7 {[%clk 00:00:13]} {[%emt 00:00:06]} 45. f3 {[%clk
00:00:18]} {[%emt 00:00:04]} Bd2 {[%clk 00:00:13]} {[%emt 00:00:01]} 46. Kc4
{[%clk 00:00:16]} {[%emt 00:00:05]} Kc6 {[%clk 00:00:14]} {[%emt 00:00:02]} 47.
Be7 {[%clk 00:00:15]} {[%emt 00:00:02]} d5+ {[%clk 00:00:15]} {[%emt 00:00:01]}
48. Kd3 {[%clk 00:00:16]} Bxa5 {[%emt 00:00:02]} 49. Bxg5 {[%clk 00:00:17]} Bc7
{[%clk 00:00:17]} {[%emt 00:00:01]} 50. f4 {[%clk 00:00:18]} b5 {[%clk
00:00:19]} 51. f5 {[%emt 00:00:01]} Be5 52. f6 {[%clk 00:00:20]} {[%emt
00:00:01]} c4+ {[%clk 00:00:22]} 53. Kc2 {[%clk 00:00:21]} Kd7 {[%clk
00:00:23]} 54. Bh4 {[%clk 00:00:18]} {[%emt 00:00:05]} Ke6 {[%clk 00:00:24]} 55.
Kd2 {[%clk 00:00:19]} {[%emt 00:00:01]} Bxf6 {[%clk 00:00:24]} {[%emt
00:00:01]} 56. Bf2 {[%clk 00:00:21]} d4 {[%clk 00:00:25]} {[%emt 00:00:01]} 57.
Bg3 {[%clk 00:00:22]} Kd5 {[%clk 00:00:27]} 58. Bc7 {[%clk 00:00:20]} {[%emt
00:00:04]} b4 {[%clk 00:00:28]} {[%emt 00:00:01]} 59. Ba5 {[%clk 00:00:21]} b3
{[%clk 00:00:29]} 60. Bb4 {[%clk 00:00:22]} Bg5+ {[%clk 00:00:30]} {[%emt
00:00:01]} 61. Kd1 {[%clk 00:00:24]} c3 {[%clk 00:00:30]} {[%emt 00:00:02]} 62.
Ke2 {[%clk 00:00:22]} {[%emt 00:00:04]} Kc4 {[%clk 00:00:31]} 63. Bf8 {[%clk
00:00:22]} {[%emt 00:00:02]} d3+ {[%clk 00:00:32]} {[%emt 00:00:01]} 64. Kd1
{[%clk 00:00:23]} c2+ {[%clk 00:00:34]} 65. Ke1 {[%clk 00:00:22]} {[%emt
00:00:02]} c1=Q+ {[%clk 00:00:32]} {[%emt 00:00:04]} 0-1

[Event "Blixt-SM 2021"]
[Site "Elite Hotel Marina Plaza, Kungstorget 6, Helsingborg, Sweden"]
[Date "2021.11.14"]
[Round "6.3"]
[White "Olsson, Linus"]
[Black "Svensson, Mikael"]
[Result "1/2-1/2"]
[TimeControl "3 minutes + 2 seconds per move."]
[WhiteTitle "FM"]
[WhiteFideId "1706098"]
[BlackFideId "1716433"]
[WhiteElo "2204"]
[BlackElo "2073"]

1. e4 {[%clk 00:03:01]} {[%emt 00:00:02]} e6 {[%clk 00:03:03]} {[%emt
00:00:01]} 2. d4 {[%clk 00:02:56]} {[%emt 00:00:07]} d5 {[%clk 00:03:04]}
{[%emt 00:00:01]} 3. exd5 {[%clk 00:02:50]} {[%emt 00:00:08]} exd5 {[%clk
00:03:05]} {[%emt 00:00:01]} 4. Nf3 {[%clk 00:02:50]} {[%emt 00:00:02]} Bg4
{[%clk 00:03:05]} {[%emt 00:00:02]} 5. Bd3 {[%clk 00:02:44]} {[%emt 00:00:08]}
Nc6 {[%clk 00:03:05]} {[%emt 00:00:02]} 6. c3 {[%clk 00:02:44]} {[%emt
00:00:02]} Bd6 {[%clk 00:03:05]} {[%emt 00:00:02]} 7. O-O {[%clk 00:02:33]}
{[%emt 00:00:12]} Nge7 {[%clk 00:03:04]} {[%emt 00:00:04]} 8. Nbd2 {[%clk
00:02:26]} {[%emt 00:00:08]} Qd7 {[%clk 00:03:00]} {[%emt 00:00:05]} 9. b4
{[%clk 00:02:24]} {[%emt 00:00:05]} O-O {[%clk 00:02:51]} {[%emt 00:00:11]} 10.
Re1 {[%clk 00:02:09]} {[%emt 00:00:17]} Rfe8 {[%clk 00:02:42]} {[%emt
00:00:12]} 11. Nf1 {[%clk 00:02:00]} {[%emt 00:00:10]} Bf5 {[%clk 00:02:42]}
{[%emt 00:00:02]} 12. Ne3 {[%clk 00:01:50]} {[%emt 00:00:12]} Bxd3 {[%clk
00:02:35]} {[%emt 00:00:09]} 13. Qxd3 {[%clk 00:01:49]} {[%emt 00:00:02]} Ng6
{[%clk 00:02:10]} {[%emt 00:00:27]} 14. g3 {[%clk 00:01:40]} {[%emt 00:00:11]}
f6 {[%clk 00:01:36]} {[%emt 00:00:36]} 15. Bd2 {[%clk 00:01:39]} {[%emt
00:00:03]} Nce7 {[%clk 00:01:24]} {[%emt 00:00:14]} 16. c4 {[%clk 00:01:26]}
{[%emt 00:00:15]} dxc4 {[%clk 00:01:19]} {[%emt 00:00:07]} 17. Qxc4+ {[%clk
00:01:26]} {[%emt 00:00:02]} Kh8 {[%clk 00:01:15]} {[%emt 00:00:07]} 18. Re2
{[%clk 00:01:08]} {[%emt 00:00:19]} Nf5 {[%clk 00:01:06]} {[%emt 00:00:11]} 19.
Rae1 {[%clk 00:01:04]} {[%emt 00:00:06]} Nxe3 {[%clk 00:00:48]} {[%emt
00:00:19]} 20. Rxe3 {[%clk 00:00:52]} {[%emt 00:00:14]} Rxe3 {[%clk 00:00:46]}
{[%emt 00:00:05]} 21. Rxe3 {[%clk 00:00:53]} Re8 {[%clk 00:00:43]} {[%emt
00:00:05]} 22. a3 {[%clk 00:00:37]} {[%emt 00:00:19]} Rxe3 {[%clk 00:00:42]}
{[%emt 00:00:02]} 23. Bxe3 {[%clk 00:00:37]} {[%emt 00:00:02]} Qf5 {[%clk
00:00:30]} {[%emt 00:00:13]} 24. Kg2 {[%clk 00:00:37]} {[%emt 00:00:02]} Qe4
{[%clk 00:00:27]} {[%emt 00:00:06]} 25. Qe2 {[%clk 00:00:13]} {[%emt 00:00:26]}
h5 {[%clk 00:00:20]} {[%emt 00:00:09]} 26. h4 {[%clk 00:00:13]} {[%emt
00:00:03]} Ne7 {[%clk 00:00:17]} {[%emt 00:00:05]} 27. Kg1 {[%clk 00:00:11]}
{[%emt 00:00:03]} Nd5 {[%clk 00:00:15]} {[%emt 00:00:04]} 28. Nd2 {[%clk
00:00:11]} {[%emt 00:00:02]} Qg4 {[%clk 00:00:10]} {[%emt 00:00:08]} 29. Qxg4
{[%clk 00:00:05]} {[%emt 00:00:08]} hxg4 {[%clk 00:00:11]} 30. Ne4 {[%clk
00:00:06]} {[%emt 00:00:02]} f5 {[%clk 00:00:06]} {[%emt 00:00:07]} 31. Nxd6
{[%clk 00:00:04]} {[%emt 00:00:03]} cxd6 {[%clk 00:00:07]} 32. Bd2 {[%clk
00:00:06]} Kg8 {[%clk 00:00:07]} {[%emt 00:00:02]} 33. Kf1 {[%clk 00:00:07]}
Kf7 {[%clk 00:00:07]} {[%emt 00:00:02]} 34. Ke2 {[%clk 00:00:08]} Nb6 {[%clk
00:00:08]} {[%emt 00:00:01]} 35. Kd3 {[%clk 00:00:08]} {[%emt 00:00:02]} d5
{[%clk 00:00:09]} 36. Bf4 {[%clk 00:00:07]} {[%emt 00:00:03]} Ke6 {[%clk
00:00:08]} {[%emt 00:00:04]} 37. Bc1 {[%clk 00:00:07]} {[%emt 00:00:02]} Nc4
{[%clk 00:00:08]} {[%emt 00:00:02]} 38. Kc3 {[%clk 00:00:07]} {[%emt 00:00:02]}
b5 {[%clk 00:00:08]} {[%emt 00:00:02]} 39. Kd3 {[%clk 00:00:08]} {[%emt
00:00:01]} Nd6 {[%clk 00:00:08]} {[%emt 00:00:02]} 40. Bd2 {[%clk 00:00:08]}
{[%emt 00:00:02]} Ne4 {[%clk 00:00:08]} {[%emt 00:00:01]} 41. Be3 {[%clk
00:00:08]} {[%emt 00:00:02]} Nd6 {[%clk 00:00:08]} {[%emt 00:00:02]} 42. Bd2
{[%clk 00:00:09]} a6 {[%clk 00:00:09]} {[%emt 00:00:02]} 43. Be3 {[%clk
00:00:10]} Nc4 {[%clk 00:00:08]} {[%emt 00:00:03]} 44. Bc1 {[%clk 00:00:11]}
{[%emt 00:00:01]} Nd6 {[%clk 00:00:09]} 1/2-1/2